[Event "44th Chess Olympiad Open 2022"]
[Site "Chennai"]
[Date "2022.08.09"]
[Round "11.22"]
[White "Reimanis, Ritvars"]
[Black "Kozul, Zdenko"]
[Result "1-0"]
[ECO "E94"]
[WhiteElo "2377"]
[BlackElo "2602"]
[Annotator "TA"]
[PlyCount "149"]
[EventDate "2022.07.29"]
[EventType "team-tourn"]
[EventCountry "IND"]
[SourceTitle "playchess.com"]
[Source "ChessBase"]
[SourceQuality "1"]
[WhiteTeam "Latvia"]
[BlackTeam "Croatia"]
[WhiteTeamCountry "LAT"]
[BlackTeamCountry "CRO"]
[TimeControl "40/5400+30:1800+30"]

{[%evp 18,149,72,70,74,64,64,50,55,54,76,41,45,61,75,48,68,63,76,79,78,80,86,73,80,61,66,63,77,78,75,70,80,29,30,45,76,38,89,65,84,0,0,0,0,11,87,70,66,46,61,21,26,18,20,0,0,0,0,0,0,0,0,-48,0,-51,-56,-138,-139,-171,-130,-165,-187,-163,-66,-56,-57,-62,-56,-56,-58,-56,-51,-51,-57,-111,-115,-94,-91,-172,-178,-134,-108,-175,-174,-164,-91,-93,-47,-212,-200,-339,-123,-152,-153,-161,0,0,0,0,0,0,0,-16,0,0,0,0,0,-10,-4,-6,-2,-531,-522,-500,-194,-423,0,-515,29997,29998,29998,29999]} 1. d4 {[%emt 0:00:07]} Nf6 {[%emt 0:00:09]} 2. c4 {[%emt 0:00:06]} g6 {[%emt 0:00:07]} 3. Nc3 {[%emt 0:00:04]} Bg7 {[%emt 0:00:07]} 4. e4 {[%emt 0:00:06]} d6 {[%emt 0:00:06]} 5. Be2 {[%emt 0:00:05]} Nbd7 {[%emt 0:03:09]} 6. Nf3 {[%emt 0:00:22]} e5 {[%emt 0:00:09]} 7. O-O {[%emt 0:00:30]} O-O {[%emt 0:00:38]} 8. Be3 {[%emt 0:11:45]} h6 {[%emt 0:00:25]} 9. dxe5 {[%emt 0:02:40]} dxe5 {[%emt 0:00:07]} 10. Qc1 $1 {[%emt 0:00:34][%mdl 4] is more profitable than 10.Nd2 at the moment.} Kh7 {[%emt 0:00:11] [#] E94: King's Indian: Classical: 6 Be2 e5 7 0-0: Various Black 7th moves.} 11. c5 $146 {[%emt 0:10:23]} ({Predecessor:} 11. Rd1 Nh5 12. c5 c6 13. b4 Qe7 14. Nd2 Nf4 15. Bf1 Nf6 16. f3 Be6 17. Nc4 Bxc4 18. Bxc4 {1-0 (42) Can,E (2578)-Kozul,Z (2619) Terme Catez 2022}) 11... Nh5 {[%emt 0:08:01][%cal Oh5f4]} 12. g3 {[%emt 0:12:17]} (12. Rd1 {feels hotter.} Nf4 13. Bc4 Qe7 14. b4) 12... c6 {[%emt 0:18:50] White is slightly better.} 13. b4 {[%emt 0:16:40]} Nhf6 {[%emt 0:05:58]} 14. Qc2 {[%emt 0:05:25]} Qe7 {[%emt 0:02:42]} 15. Rad1 {[%emt 0:02:59]} Ne8 {[%emt 0:02:13]} 16. Nd2 {[%emt 0:02:00]} Ndf6 {[%emt 0:01:26]} 17. Nc4 {[%emt 0:01:30]} Bh3 {[%emt 0:02:22]} 18. Rfe1 {[%emt 0:00:04]} Nc7 {[%emt 0:00:19]} 19. f3 {[%emt 0:06:13] Prevents Ng4.} h5 {[%emt 0:04:41]} 20. Rd6 {[%emt 0:01:07]} Rfb8 {[%emt 0:13:37]} 21. Red1 {[%emt 0:03:05]} Nfe8 {[%emt 0:00:12]} 22. R6d2 {[%emt 0:08:11]} Ne6 {[%emt 0:00:41]} 23. Bf1 {[%emt 0:00:22]} (23. Rd7 Qf8 $11) 23... Bxf1 {[%emt 0:09:14]} 24. Kxf1 {[%emt 0:00:07]} b6 {[%emt 0:08:51]} (24... Nd4 25. Bxd4 exd4 26. Ne2 $16) 25. Ne2 {[%emt 0:01:19] Prevents Nd4.} ({Reject} 25. cxb6 axb6 26. Qb2 (26. Nxb6 Ra6 $14) (26. Bxb6 Qxb4 27. Qb3 Qxb3 $15) 26... b5 $11) ({Better is} 25. Rd7 $16 Qf6 26. cxb6 axb6 27. Qf2) 25... bxc5 $11 {[%emt 0:00:37]} 26. bxc5 {[%emt 0:00:48]} (26. Rd7 {is more complex.} Qf6 27. f4 exf4 28. e5) 26... Rb7 {[%emt 0:01:55] Inhibits Rd7.} 27. Kg2 {[%emt 0:01:43]} Rc8 {[%emt 0:01:41]} (27... Rd8 $14) 28. Na5 {[%emt 0:00:37]} Rbc7 {[%emt 0:00:40]} 29. h4 {[%emt 0:01:02]} ({White should play} 29. Nc1 $16) 29... Bh6 $1 {[%emt 0:00:58]} 30. Bxh6 {[%emt 0:00:10]} Kxh6 {[%emt 0:01:28]} 31. Nb3 {[%emt 0:00:57]} g5 {[%emt 0:00:00]} (31... Kh7 $11) 32. hxg5+ {[%emt 0:05:16]} Qxg5 {[%emt 0:00:00]} 33. Rh1 {[%emt 0:00:07]} Nf6 {[%emt 0:00:28]} 34. Kf2 {[%emt 0:00:19]} Kg7 {[%emt 0:02:12]} 35. Qc3 {[%emt 0:01:25]} Rd7 {[%emt 0:02:02]} 36. Rxd7 {[%emt 0:01:00]} Nxd7 {[%emt 0:00:05]} 37. f4 {[%emt 0:00:50]} Qf6 {[%emt 0:00:36][%cal Re5f4]} 38. f5 {[%emt 0:00:57]} Ng5 {[%emt 0:00:29]} 39. Nd2 {[%emt 0:03:13]} Rh8 {[%emt 0:02:32]} 40. Qe3 {[%emt 0:03:16]} (40. Kg2 $11) 40... Qe7 {[%emt 0:03:17]} (40... Qh6 $1 $15) 41. Rc1 {[%emt 0:10:41]} (41. Kg2 $11) 41... Nh7 {[%emt 0:05:49]} 42. Nf3 {[%emt 0:01:15]} (42. Ng1 $15) 42... Ndf6 $17 {[%emt 0:00:51] White must now prevent ...Ng4+.} 43. Ke1 {[%emt 0:05:07]} Rb8 {[%emt 0:01:51]} 44. Nd2 {[%emt 0:07:40]} Ng4 {[%emt 0:02:42]} 45. Qc3 {[%emt 0:01:36]} Nhf6 {[%emt 0:00:09]} (45... Rd8 $1 $19 {Hoping for ...Ng5.} 46. Ng1 Ng5) 46. Ng1 $1 $15 {[%emt 0:00:34]} Rb5 {[%emt 0:02:32]} 47. a4 {[%emt 0:00:28]} Rb7 {[%emt 0:00:12][%cal Oa7a5]} 48. Ngf3 {[%emt 0:00:04]} Qc7 {[%emt 0:00:06]} 49. Ke2 {[%emt 0:00:46]} Qb8 {[%emt 0:00:11]} 50. Qd3 $1 {[%emt 0:01:25]} Rb2 {[%emt 0:02:22]} 51. Ke1 {[%emt 0:02:05]} ({White should try} 51. Rc3 $1 $15) 51... Qb4 $17 {[%emt 0:07:24]} 52. Rc4 {[%emt 0:00:28]} Qa5 {[%emt 0:00:07]} 53. Qa3 {[%emt 0:01:32] Prevents Ra2.} (53. Ke2 $17) 53... Rb1+ $1 $19 {[%emt 0:01:33]} 54. Ke2 {[%emt 0:00:58]} Rh1 {[%emt 0:00:07]} 55. Qc3 {[%emt 0:00:31]} (55. Qd3 $17) 55... Qa6 {[%emt 0:00:30]} 56. Qd3 {[%emt 0:00:00]} h4 {[%emt 0:10:02]} (56... Ra1 $19 57. Rb4 Qxd3+ 58. Kxd3 Nd7) 57. Nxh4 $17 {[%emt 0:01:27]} Qc8 {[%emt 0:00:08]} (57... Qb7 $17 58. Qc3 Qd7) 58. Ndf3 $2 {[%emt 0:00:35]} (58. Rb4 $1 $15) 58... Qb7 $19 {[%emt 0:01:39][%mdl 1024] Black has strong compensation.} 59. Qc2 {[%emt 0:00:22] Against Qb2} (59. Nd2 $142) 59... Rb1 $2 {[%emt 0:00:24]} (59... Qb8 $19 {Threatens to win with ...a5.} 60. Ne1 Rf1 $3 {[%mdl 512]}) 60. Nd2 $17 {[%emt 0:00:16] [#]} Rg1 {[%emt 0:00:06]} 61. Qc3 {[%emt 0:01:07] [#]} Nh5 $2 {[%emt 0:05:29]} ({Worse is} 61... Qd7 62. Nhf3 Rxg3 63. Rb4) (61... a5 $1 $19 {Strongly threatening ...Qa8.} 62. Qa3 Qd7) 62. f6+ $1 $11 {[%emt 0:00:02]} Kh7 {[%emt 0:00:06]} (62... Kh8 $5 63. Nf5 Qd7 $11) 63. Nf5 $1 {[%emt 0:01:02]} Nhxf6 {[%emt 0:02:09]} 64. Rb4 {[%emt 0:00:03][%cal Bc4b4,Bb4b7,Bb7f7][%mdl 32] Really sharp!} Qd7 {[%emt 0:00:10]} 65. Nd6 {[%emt 0:00:32] Rb7 is the strong threat.} (65. Qf3 $5 {[%cal Rf5d6]}) 65... Qe6 $36 {[%emt 0:02:19][%mdl 2048] White is under pressure.} 66. Rb7 {[%emt 0:01:25]} Rg2+ {[%emt 0:00:05]} 67. Ke1 {[%emt 0:00:23] Active counter play!} Qa2 {[%emt 0:00:48]} 68. Rxf7+ {[%emt 0:00:34]} Kg6 {[%emt 0:00:05][%cal Og4e3] aiming for ...Ne3!} 69. Rb7 $1 {[%emt 0:00:03]} Qxa4 {[%emt 0:01:04] ( -> ...Rg1+)} 70. Qb3 $2 {[%emt 0:01:58][%mdl 8192]} (70. Nf3 $11 {and White has nothing to worry.} Ra2 71. Qb3 (71. Nxe5+ $2 Nxe5 72. Qxe5 Ra1+ 73. Qxa1 Qxa1+ $19) 71... Ra1+ 72. Kd2 Ra2+ 73. Kc1 Qxb3 74. Rxb3) 70... Qa1+ $19 {[%emt 0:00:07]} 71. Nb1 {[%emt 0:00:24][%cal Ob7g7]} Qa5+ $2 {[%emt 0:00:50]} (71... Rg1+ 72. Ke2 Rg2+ 73. Ke1 (73. Kf1 $2 Qa6+ 74. Rb5 Rf2+ 75. Kg1 cxb5 $19) 73... Qa5+ 74. Rb4 Kg5) 72. Nc3 $2 {[%emt 0:00:28]} (72. Rb4) 72... Qa1+ {[%emt 0:00:33]} 73. Nb1 {[%emt 0:00:01]} Kg5 $4 {[%emt 0:00:22][%mdl 8192]} (73... Rg1+ $19 74. Ke2 Rg2+ 75. Ke1 (75. Kf1 $2 Qa6+ 76. Rb5 Rf2+ 77. Kg1 cxb5 $19)) 74. Rg7+ {[%emt 0:00:16]} Kh6 {[%emt 0:00:05]} 75. Nf5+ {[%emt 0:00:05] Weighted Error Value: White=0.22 (precise) /Black=0.17 (very precise)} 1-0

[Event "44th Chess Olympiad Open 2022"]
[Site "Chennai"]
[Date "2022.08.09"]
[Round "11.23"]
[White "Peralta, Fernando"]
[Black "Keinanen, Toivo"]
[Result "1/2-1/2"]
[ECO "D31"]
[WhiteElo "2591"]
[BlackElo "2477"]
[Annotator "RC"]
[PlyCount "77"]
[EventDate "2022.07.29"]
[EventType "team-tourn"]
[EventCountry "IND"]
[SourceTitle "playchess.com"]
[Source "ChessBase"]
[SourceQuality "1"]
[WhiteTeam "Argentina"]
[BlackTeam "Finland"]
[WhiteTeamCountry "ARG"]
[BlackTeamCountry "FIN"]
[TimeControl "40/5400+30:1800+30"]

1. d4 {[%emt 0:00:04]} d5 {[%emt 0:00:23]} 2. c4 {[%emt 0:00:05]} e6 {[%emt 0:00:01]} 3. Nc3 {[%emt 0:00:07]} Be7 {[%emt 0:00:01]} 4. cxd5 {[%emt 0:00:11]} exd5 {[%emt 0:00:01]} 5. Bf4 {[%emt 0:00:08]} c6 {[%emt 0:00:01]} 6. Qc2 {[%emt 0:00:37]} Nf6 {[%emt 0:00:06]} 7. h3 {[%emt 0:01:02]} Na6 {[%emt 0:00:19]} 8. a3 {[%emt 0:11:56]} g6 {[%emt 0:00:19]} 9. e3 {[%emt 0:01:57]} Bf5 {[%emt 0:00:47]} 10. Qd2 {[%emt 0:01:39]} Nc7 {[%emt 0:00:45]} 11. Nge2 {[%emt 0:01:45]} O-O {[%emt 0:03:14]} 12. Ng3 {[%emt 0:02:54]} Bc8 {[%emt 0:02:18]} 13. Bd3 {[%emt 0:01:55]} Ne6 {[%emt 0:03:21]} 14. Bh6 {[%emt 0:24:29]} Re8 {[%emt 0:04:43]} 15. Nge2 {[%emt 0:01:13]} Bd6 {[%emt 0:24:16]} 16. O-O {[%emt 0:01:53]} Kh8 {[%emt 0:01:29]} 17. Nf4 {[%emt 0:02:37]} Ng8 {[%emt 0:05:51]} 18. Nxe6 {[%emt 0:00:58]} Bxe6 {[%emt 0:00:23]} 19. Bf4 {[%emt 0:00:06]} Bxf4 {[%emt 0:00:51]} 20. exf4 {[%emt 0:00:04]} Qf6 {[%emt 0:00:07]} 21. Bc2 {[%emt 0:03:25]} Nh6 {[%emt 0:11:24]} 22. Rae1 {[%emt 0:05:42]} Bf5 {[%emt 0:01:47]} 23. Ba4 {[%emt 0:00:32]} Qd6 {[%emt 0:01:18]} 24. g4 {[%emt 0:03:33]} Bd7 {[%emt 0:00:44]} 25. Bc2 {[%emt 0:02:41]} Kg7 {[%emt 0:05:16]} 26. Ne2 {[%emt 0:04:07]} f6 {[%emt 0:15:01]} 27. Ng3 {[%emt 0:01:46]} Nf7 {[%emt 0:00:34]} 28. f5 {[%emt 0:01:58]} Ng5 {[%emt 0:02:19]} 29. Kg2 {[%emt 0:03:23]} Rxe1 {[%emt 0:07:26]} 30. Rxe1 {[%emt 0:00:58]} Re8 {[%emt 0:00:36]} 31. Rxe8 {[%emt 0:05:00]} Bxe8 {[%emt 0:00:03]} 32. h4 {[%emt 0:01:53]} Nf7 {[%emt 0:06:10]} 33. fxg6 {[%emt 0:05:11]} hxg6 {[%emt 0:00:00]} 34. h5 {[%emt 0:06:28]} Ng5 {[%emt 0:00:00]} 35. hxg6 {[%emt 0:04:29]} Bxg6 {[%emt 0:00:00]} 36. Bxg6 {[%emt 0:00:11]} Kxg6 {[%emt 0:00:00]} 37. f3 {[%emt 0:01:14]} Kf7 {[%emt 0:01:18]} 38. Qe3 {[%emt 0:00:40]} Qe6 {[%emt 0:03:58]} 39. Qxe6+ {[%emt 0:00:33]} 1/2-1/2

[Event "44th Chess Olympiad Open 2022"]
[Site "Chennai"]
[Date "2022.08.09"]
[Round "11.23"]
[White "Krysa, Leandro"]
[Black "Nyysti, Sampsa"]
[Result "1-0"]
[ECO "E15"]
[WhiteElo "2515"]
[BlackElo "2363"]
[Annotator "RC"]
[PlyCount "83"]
[EventDate "2022.07.29"]
[EventType "team-tourn"]
[EventCountry "IND"]
[SourceTitle "playchess.com"]
[Source "ChessBase"]
[SourceQuality "1"]
[WhiteTeam "Argentina"]
[BlackTeam "Finland"]
[WhiteTeamCountry "ARG"]
[BlackTeamCountry "FIN"]
[TimeControl "40/5400+30:1800+30"]

1. d4 {[%emt 0:00:06]} Nf6 {[%emt 0:00:05]} 2. c4 {[%emt 0:00:26]} e6 {[%emt 0:00:05]} 3. Nf3 {[%emt 0:00:22]} b6 {[%emt 0:00:16]} 4. g3 {[%emt 0:00:27]} Ba6 {[%emt 0:00:36]} 5. Qc2 {[%emt 0:00:21]} Bb4+ {[%emt 0:20:50]} 6. Bd2 {[%emt 0:09:17]} Be7 {[%emt 0:00:00]} 7. e4 {[%emt 0:01:12]} d5 {[%emt 0:00:00]} 8. cxd5 {[%emt 0:04:22]} Bxf1 {[%emt 0:00:00]} 9. Kxf1 {[%emt 0:00:08]} exd5 {[%emt 0:00:00]} 10. e5 {[%emt 0:00:09]} Ne4 {[%emt 0:03:23]} 11. Nc3 {[%emt 0:04:10]} Nxc3 {[%emt 0:00:00]} 12. bxc3 {[%emt 0:06:51]} Qd7 {[%emt 0:07:27]} 13. Kg2 {[%emt 0:03:29]} Nc6 {[%emt 0:08:08]} 14. Bg5 {[%emt 0:00:37]} f6 {[%emt 0:13:35]} 15. exf6 {[%emt 0:05:43]} gxf6 {[%emt 0:01:14]} 16. Bf4 {[%emt 0:01:11]} O-O-O {[%emt 0:00:43]} 17. Rhe1 {[%emt 0:02:16]} Kb7 {[%emt 0:02:31]} 18. Re3 {[%emt 0:02:38]} Na5 {[%emt 0:11:15]} 19. Rae1 {[%emt 0:03:28]} Ba3 {[%emt 0:13:14]} 20. Re6 {[%emt 0:12:48]} Rhf8 {[%emt 0:00:00]} 21. Qf5 {[%emt 0:05:36]} Rf7 {[%emt 0:00:00]} 22. Nh4 {[%emt 0:03:20]} Bb2 {[%emt 0:00:00]} 23. R1e3 {[%emt 0:17:11]} Nc4 {[%emt 0:01:31]} 24. Rf3 {[%emt 0:00:38]} Qa4 {[%emt 0:01:47]} 25. Rxf6 {[%emt 0:01:45]} Rxf6 {[%emt 0:03:31]} 26. Qxf6 {[%emt 0:00:04]} Rd7 {[%emt 0:00:19]} 27. Qe6 {[%emt 0:04:50]} Qc6 {[%emt 0:01:16]} 28. Qe8 {[%emt 0:02:38]} Nd6 {[%emt 0:00:34]} 29. Bxd6 {[%emt 0:02:21]} Rxd6 {[%emt 0:00:13]} 30. Qe3 {[%emt 0:00:54]} Qa4 {[%emt 0:01:49]} 31. Nf5 {[%emt 0:01:50]} Rc6 {[%emt 0:00:53]} 32. Qe8 {[%emt 0:02:24]} Rc4 {[%emt 0:00:25]} 33. Nd6+ {[%emt 0:00:47]} cxd6 {[%emt 0:00:15]} 34. Rf7+ {[%emt 0:00:06]} Ka6 {[%emt 0:00:05]} 35. Qa8 {[%emt 0:00:49]} Qc6 {[%emt 0:02:28]} 36. Rxa7+ {[%emt 0:00:40]} Kb5 {[%emt 0:00:03]} 37. a4+ {[%emt 0:00:27]} Rxa4 {[%emt 0:00:03]} 38. Qxc6+ {[%emt 0:00:44]} Kxc6 {[%emt 0:00:02]} 39. Rxa4 {[%emt 0:00:04]} Bxc3 {[%emt 0:00:12]} 40. Kf1 {[%emt 0:01:04]} Kb5 {[%emt 0:00:22]} 41. Ra7 {[%emt 0:31:33]} Kc4 {[%emt 0:33:04]} 42. Rxh7 {[%emt 0:00:00]} 1-0

[Event "44th Chess Olympiad Open 2022"]
[Site "Chennai"]
[Date "2022.08.09"]
[Round "11.23"]
[White "Sipila, Vilka"]
[Black "Perez Ponsa, Federico"]
[Result "1-0"]
[ECO "A38"]
[WhiteElo "2416"]
[BlackElo "2554"]
[Annotator "RC"]
[PlyCount "71"]
[EventDate "2022.07.29"]
[EventType "team-tourn"]
[EventCountry "IND"]
[SourceTitle "playchess.com"]
[Source "ChessBase"]
[SourceQuality "1"]
[WhiteTeam "Finland"]
[BlackTeam "Argentina"]
[WhiteTeamCountry "FIN"]
[BlackTeamCountry "ARG"]
[TimeControl "40/5400+30:1800+30"]

1. Nf3 {[%emt 0:00:08]} Nf6 {[%emt 0:00:21]} 2. g3 {[%emt 0:00:26]} g6 {[%emt 0:00:11]} 3. b3 {[%emt 0:00:31]} Bg7 {[%emt 0:00:22]} 4. Bb2 {[%emt 0:00:06]} c5 {[%emt 0:01:30]} 5. c4 {[%emt 0:00:09]} d6 {[%emt 0:01:00]} 6. Bg2 {[%emt 0:16:13]} e5 {[%emt 0:00:40]} 7. O-O {[%emt 0:00:07]} O-O {[%emt 0:00:11]} 8. Nc3 {[%emt 0:00:35]} Nc6 {[%emt 0:00:15]} 9. Ne1 {[%emt 0:12:33]} h5 {[%emt 0:09:17]} 10. Nf3 {[%emt 0:10:58]} Nd4 {[%emt 0:07:57]} 11. e3 {[%emt 0:04:33]} Nxf3+ {[%emt 0:04:57]} 12. Bxf3 {[%emt 0:02:51]} Qe7 {[%emt 0:03:47]} 13. d3 {[%emt 0:07:29]} Bh3 {[%emt 0:04:54]} 14. Re1 {[%emt 0:01:11]} Rad8 {[%emt 0:01:00]} 15. Qd2 {[%emt 0:01:56]} b6 {[%emt 0:04:42]} 16. a3 {[%emt 0:06:29]} Be6 {[%emt 0:15:29]} 17. e4 {[%emt 0:09:31]} Kh7 {[%emt 0:05:02]} 18. b4 {[%emt 0:01:59]} Bg4 {[%emt 0:09:08]} 19. Qe2 {[%emt 0:05:52]} Bh6 {[%emt 0:05:11]} 20. b5 {[%emt 0:04:25]} Qe6 {[%emt 0:02:27]} 21. a4 {[%emt 0:00:29]} Kg7 {[%emt 0:00:00]} 22. a5 {[%emt 0:04:14]} Nh7 {[%emt 0:03:14]} 23. Bxg4 {[%emt 0:03:03]} hxg4 {[%emt 0:00:16]} 24. h3 {[%emt 0:13:18]} gxh3 {[%emt 0:00:27]} 25. f4 {[%emt 0:01:37]} Nf6 {[%emt 0:01:21]} 26. Nd5 {[%emt 0:00:20]} Qg4 {[%emt 0:10:17]} 27. fxe5 {[%emt 0:05:45]} Qxg3+ {[%emt 0:01:26]} 28. Kh1 {[%emt 0:00:00]} Ng4 {[%emt 0:02:28]} 29. exd6+ {[%emt 0:00:00]} f6 {[%emt 0:00:21]} 30. Rf1 {[%emt 0:00:00]} Rxd6 {[%emt 0:03:00]} 31. Rf3 {[%emt 0:00:00]} Qh4 {[%emt 0:00:30]} 32. axb6 {[%emt 0:00:00]} axb6 {[%emt 0:00:01]} 33. e5 {[%emt 0:00:00]} Rd7 {[%emt 0:03:05]} 34. e6 {[%emt 0:00:00]} Re8 {[%emt 0:00:15]} 35. Nxf6 {[%emt 0:00:00]} Nxf6 {[%emt 0:02:21]} 36. Bxf6+ {[%emt 0:00:00]} 1-0

[Event "44th Chess Olympiad Open 2022"]
[Site "Chennai"]
[Date "2022.08.09"]
[Round "11.23"]
[White "Koykka, Pekka"]
[Black "Flores, Diego"]
[Result "0-1"]
[ECO "C80"]
[WhiteElo "2361"]
[BlackElo "2528"]
[Annotator "RC"]
[PlyCount "68"]
[EventDate "2022.07.29"]
[EventType "team-tourn"]
[EventCountry "IND"]
[SourceTitle "playchess.com"]
[Source "ChessBase"]
[SourceQuality "1"]
[WhiteTeam "Finland"]
[BlackTeam "Argentina"]
[WhiteTeamCountry "FIN"]
[BlackTeamCountry "ARG"]
[TimeControl "40/5400+30:1800+30"]

1. e4 {[%emt 0:00:06]} e5 {[%emt 0:00:36]} 2. Nf3 {[%emt 0:00:20]} Nc6 {[%emt 0:00:08]} 3. Bb5 {[%emt 0:00:16]} a6 {[%emt 0:00:52]} 4. Ba4 {[%emt 0:00:11]} Nf6 {[%emt 0:02:52]} 5. O-O {[%emt 0:00:26]} Nxe4 {[%emt 0:00:44]} 6. Re1 {[%emt 0:07:22]} Nc5 {[%emt 0:00:38]} 7. Bxc6 {[%emt 0:00:22]} dxc6 {[%emt 0:00:12]} 8. Nxe5 {[%emt 0:01:43]} Be7 {[%emt 0:01:09]} 9. d4 {[%emt 0:05:13]} Ne6 {[%emt 0:03:14]} 10. Be3 {[%emt 0:03:51]} O-O {[%emt 0:03:25]} 11. c3 {[%emt 0:01:55]} f6 {[%emt 0:22:15]} 12. Nd3 {[%emt 0:01:29]} Re8 {[%emt 0:05:00]} 13. Qb3 {[%emt 0:08:01]} Kh8 {[%emt 0:10:16]} 14. Nd2 {[%emt 0:04:48]} Nf8 {[%emt 0:02:22]} 15. Nf4 {[%emt 0:38:36]} Bd6 {[%emt 0:09:49]} 16. Nf1 {[%emt 0:02:29]} b6 {[%emt 0:09:42]} 17. Qc4 {[%emt 0:04:44]} Qd7 {[%emt 0:06:54]} 18. Ng3 {[%emt 0:01:20]} Bb7 {[%emt 0:02:04]} 19. Qd3 {[%emt 0:06:12]} Rad8 {[%emt 0:00:39]} 20. Qf5 {[%emt 0:00:58]} Qf7 {[%emt 0:01:44]} 21. Ne4 {[%emt 0:00:25]} Bxf4 {[%emt 0:00:31]} 22. Qxf4 {[%emt 0:00:57]} c5 {[%emt 0:01:29]} 23. Ng5 {[%emt 0:02:33]} Qd7 {[%emt 0:04:47]} 24. Nf3 {[%emt 0:01:35]} Re4 {[%emt 0:00:20]} 25. Qg3 {[%emt 0:00:20]} Rg4 {[%emt 0:01:06]} 26. Qh3 {[%emt 0:00:08]} cxd4 {[%emt 0:00:11]} 27. cxd4 {[%emt 0:03:24]} Bd5 {[%emt 0:00:51]} 28. Rec1 {[%emt 0:02:53]} Ng6 {[%emt 0:06:18]} 29. Kh1 {[%emt 0:00:30]} f5 {[%emt 0:00:43]} 30. Ne1 {[%emt 0:01:24]} Rh4 {[%emt 0:00:10]} 31. Qg3 {[%emt 0:00:29]} f4 {[%emt 0:00:08]} 32. Bxf4 {[%emt 0:00:35]} Rxf4 {[%emt 0:00:23]} 33. Nd3 {[%emt 0:00:49]} Rg4 {[%emt 0:00:56]} 34. Rxc7 {[%emt 0:00:26]} Qf5 {[%emt 0:00:16]} 0-1

[Event "44th Chess Olympiad Open 2022"]
[Site "Chennai"]
[Date "2022.08.09"]
[Round "11.24"]
[White "Grandelius, Nils"]
[Black "Tin, Jingyao"]
[Result "1/2-1/2"]
[ECO "A11"]
[WhiteElo "2655"]
[BlackElo "2552"]
[Annotator "TA"]
[PlyCount "71"]
[EventDate "2022.07.29"]
[EventType "team-tourn"]
[EventCountry "IND"]
[SourceTitle "playchess.com"]
[Source "ChessBase"]
[SourceQuality "1"]
[WhiteTeam "Sweden"]
[BlackTeam "SGP"]
[WhiteTeamCountry "SWE"]
[TimeControl "40/5400+30:1800+30"]

{[%evp 14,71,6,10,29,29,31,29,29,31,31,25,26,34,93,85,91,73,69,59,62,61,62,35,51,45,44,53,37,49,97,83,149,112,126,109,114,102,106,122,106,91,105,104,94,89,99,111,162,83,139,83,149,80,82,0,127,0,77,0]} 1. Nf3 {[%emt 0:00:53]} d5 {[%emt 0:00:26]} 2. g3 {[%emt 0:00:59]} Nf6 {[%emt 0:00:46]} 3. Bg2 {[%emt 0:00:11]} c6 {[%emt 0:00:50]} 4. O-O {[%emt 0:01:55]} Bg4 {[%emt 0:01:53]} 5. c4 {[%emt 0:01:09]} Nbd7 {[%emt 0:04:26]} 6. cxd5 {[%emt 0:03:35]} cxd5 {[%emt 0:18:49]} 7. Nc3 {[%emt 0:06:29]} e6 {[%emt 0:00:00]} 8. d4 {[%emt 0:10:57]} Bd6 {[%emt 0:00:47] A11: English Opening: 1...c6.} 9. Qb3 {[%emt 0:20:09]} Qb6 {[%emt 0:04:48]} 10. Qxb6 {[%emt 0:00:14]} (10. e4 {with more complications.} Nxe4 11. Nxe4 dxe4 12. Ng5) 10... Nxb6 {[%emt 0:02:49] White has an edge.} 11. Ne5 {[%emt 0:00:00] [#]} Bf5 $146 {[%emt 0:07:13]} ({Predecessor:} 11... Bh5 12. e4 O-O 13. h3 Nxe4 14. Nxe4 dxe4 15. Bxe4 f6 16. Nd3 Bg6 17. Bxg6 hxg6 {0-1 (123) Rozum,I (2542)-Zakhartsov,V (2499) Bryansk 2021}) 12. f3 {[%emt 0:05:44][%cal Bf2f3,Bf3f4][%mdl 32] Threatens to win with e4.} h6 {[%emt 0:04:09]} 13. a4 {[%emt 0:06:55]} Bxe5 {[%emt 0:09:39]} (13... O-O $14) 14. dxe5 $16 {[%emt 0:00:21]} Nfd7 {[%emt 0:00:02]} 15. Nb5 {[%emt 0:14:58] And now a5 would win.} O-O {[%emt 0:01:49]} 16. f4 {[%emt 0:13:07]} a5 {[%emt 0:02:12]} 17. b3 {[%emt 0:00:00]} Nc5 {[%emt 0:06:44]} 18. Nd4 {[%emt 0:00:00]} Be4 {[%emt 0:02:28]} 19. Ba3 {[%emt 0:00:00]} Rfc8 {[%emt 0:00:16]} 20. Rfc1 {[%emt 0:00:00]} Nbd7 {[%emt 0:00:51]} 21. Bh3 {[%emt 0:03:43][%cal Bg2h3,Bh3f1,Bf1b5][%mdl 32]} g6 {[%emt 0:04:45]} (21... b6 $14 {was preferrable.}) 22. Rc3 $1 {[%emt 0:02:17]} Bf5 {[%emt 0:02:41] [#]} (22... b6 $142) 23. Rac1 $1 $36 {[%emt 0:00:00][%mdl 2048] Keeping Black busy.} b6 {[%emt 0:00:23]} (23... Bxh3 24. Bxc5) 24. Bf1 {[%emt 0:00:00]} Rcb8 {[%emt 0:02:30]} 25. e3 $1 {[%emt 0:00:44]} Ne4 {[%emt 0:00:26]} 26. Rc7 {[%emt 0:00:25]} Ndc5 {[%emt 0:02:29]} 27. Bb5 {[%emt 0:03:24] White is more active.} Rc8 {[%emt 0:00:15]} 28. Rxc8+ {[%emt 0:00:00]} Rxc8 {[%emt 0:00:05]} 29. b4 {[%emt 0:01:12]} axb4 {[%emt 0:00:40]} 30. Bxb4 {[%emt 0:01:40]} Kg7 (30... Rb8 $16) 31. Kg2 {[%emt 0:04:37]} (31. a5 $18 bxa5 32. Ba3 (32. Bxa5 Rb8 $11)) 31... h5 {[%emt 0:02:21]} (31... Ra8 $142) 32. h3 {[%emt 0:00:00]} (32. a5 $142 $1 {[%cal Ra5b6]} bxa5 33. Ba3 (33. Bxa5 Rb8 $11) (33. Nxf5+ gxf5 34. Bxa5 Rb8 $15)) 32... Rb8 {[%emt 0:04:03]} (32... Ra8 $142) 33. Ra1 {[%emt 0:00:28]} (33. a5 Nb3 $1 34. Nc6 (34. Nxb3 bxa5 35. Nxa5 Rxb5 $15) 34... Ra8 35. axb6 Nxc1 $11) (33. Be2 $142 $1) 33... Nb7 {[%emt 0:00:45]} 34. Rc1 {[%emt 0:00:05]} (34. Nxf5+ $6 gxf5 35. Kf3 Nbc5 $11) 34... Nbc5 {[%emt 0:04:39] [#]} 35. Ra1 {[%emt 0:00:02]} ({Weaker is} 35. a5 {[#]} Nb3 $1 36. Nc6 (36. Nxb3 bxa5 37. Nxa5 Rxb5 $15) 36... Rg8 $15) (35. Be2 $142 $1) 35... Nb7 $1 {[%emt 0:00:06]} 36. Rc1 {[%emt 0:00:06] Weighted Error Value: White=0.20 (precise) /Black=0.15 (very precise)} ({Much weaker is} 36. Nxf5+ gxf5 37. Kf3 Nbc5 $11) (36. Be2 $16 Nec5 37. Nxf5+ gxf5 38. Bxh5) 1/2-1/2